[Event "Early-Titled-Tuesday-Blitz-May-14-2024"]
[Site "Chess.com"]
[Date "2024.05.14"]
[Round "5"]
[White "azikom"]
[Black "ItsCheckM8Mate"]
[Result "1-0"]
[WhiteElo "2717"]
[BlackElo "2289"]
[TimeControl "180+1"]
[EndTime "8:57:21 PDT"]
[Termination "azikom won on time"]

1. c4 {[%clk 0:03:00.5]} 1... c5 {[%clk 0:02:55.9]} 2. Nc3 {[%clk 0:03:00.2]}
2... Nc6 {[%clk 0:02:56.2]} 3. g3 {[%clk 0:03:01.1]} 3... g6 {[%clk 0:02:54.7]}
4. Bg2 {[%clk 0:03:02]} 4... Bg7 {[%clk 0:02:55.1]} 5. h4 {[%clk 0:03:02.3]}
5... h5 {[%clk 0:02:51.3]} 6. d3 {[%clk 0:03:01.9]} 6... e5 {[%clk 0:02:48.5]}
7. Nh3 {[%clk 0:03:00]} 7... Nge7 {[%clk 0:02:47.5]} 8. Ng5 {[%clk 0:02:58.6]}
8... d6 {[%clk 0:02:45.2]} 9. Bd2 {[%clk 0:02:58.3]} 9... Rb8 {[%clk 0:02:43.6]}
10. a3 {[%clk 0:02:57.8]} 10... a5 {[%clk 0:02:38.2]} 11. Rb1 {[%clk 0:02:57.9]}
11... O-O {[%clk 0:02:30]} 12. e3 {[%clk 0:02:55.1]} 12... f6 {[%clk 0:02:26.9]}
13. Nge4 {[%clk 0:02:54.4]} 13... Bg4 {[%clk 0:02:20.2]} 14. Qa4 {[%clk
0:02:51.6]} 14... Qd7 {[%clk 0:02:02.6]} 15. Nb5 {[%clk 0:02:49.4]} 15... b6
{[%clk 0:01:55.6]} 16. Nexd6 {[%clk 0:02:41.8]} 16... Rfd8 {[%clk 0:01:31.9]}
17. Qc2 {[%clk 0:02:40.1]} 17... Nc8 {[%clk 0:01:28.2]} 18. Nxc8 {[%clk
0:02:28.7]} 18... Rbxc8 {[%clk 0:01:28.2]} 19. Be4 {[%clk 0:02:28.3]} 19... Bf5
{[%clk 0:01:21.6]} 20. Bc3 {[%clk 0:02:25.7]} 20... Bxe4 {[%clk 0:01:15.5]} 21.
dxe4 {[%clk 0:02:25.2]} 21... Qg4 {[%clk 0:01:15.7]} 22. Rd1 {[%clk 0:02:12.6]}
22... Rxd1+ {[%clk 0:01:01.3]} 23. Qxd1 {[%clk 0:02:12.1]} 23... Qxe4 {[%clk
0:01:01.3]} 24. Qd5+ {[%clk 0:02:12.4]} 24... Qxd5 {[%clk 0:01:00.4]} 25. cxd5
{[%clk 0:02:13.3]} 25... Nb8 {[%clk 0:00:55.4]} 26. e4 {[%clk 0:02:11.7]} 26...
Rd8 {[%clk 0:00:46]} 27. a4 {[%clk 0:02:11.1]} 27... f5 {[%clk 0:00:42.3]} 28.
f3 {[%clk 0:02:10.5]} 28... Nd7 {[%clk 0:00:40.3]} 29. Ke2 {[%clk 0:02:09.8]}
29... Bh6 {[%clk 0:00:25]} 30. Rf1 {[%clk 0:02:02.7]} 30... Rf8 {[%clk
0:00:24.2]} 31. Nd6 {[%clk 0:02:01]} 31... Rf6 {[%clk 0:00:21.7]} 32. Nc4 {[%clk
0:02:00.3]} 32... fxe4 {[%clk 0:00:18.3]} 33. fxe4 {[%clk 0:01:59.7]} 33... Rxf1
{[%clk 0:00:17.8]} 34. Kxf1 {[%clk 0:02:00.6]} 34... Bg7 {[%clk 0:00:17.3]} 35.
Bd2 {[%clk 0:01:58]} 35... Bf6 {[%clk 0:00:16.6]} 36. Ke2 {[%clk 0:01:56.4]}
36... Kf7 {[%clk 0:00:16.6]} 37. Kf3 {[%clk 0:01:55.4]} 37... Ke7 {[%clk
0:00:16.3]} 38. b3 {[%clk 0:01:55.9]} 38... Kf7 {[%clk 0:00:15.8]} 39. Bc3
{[%clk 0:01:53.3]} 39... Ke7 {[%clk 0:00:15.6]} 40. Be1 {[%clk 0:01:52.7]} 40...
Kf7 {[%clk 0:00:15.7]} 41. g4 {[%clk 0:01:52.6]} 41... hxg4+ {[%clk 0:00:13.4]}
42. Kxg4 {[%clk 0:01:53.5]} 42... Ke7 {[%clk 0:00:13.3]} 43. Bd2 {[%clk
0:01:52.6]} 43... Kf7 {[%clk 0:00:13.2]} 44. Bg5 {[%clk 0:01:49.1]} 44... Kg7
{[%clk 0:00:10.9]} 45. Be3 {[%clk 0:01:37.5]} 45... Kf7 {[%clk 0:00:10.5]} 46.
h5 {[%clk 0:01:35.5]} 46... gxh5+ {[%clk 0:00:10.3]} 47. Kxh5 {[%clk 0:01:36.4]}
47... Kg7 {[%clk 0:00:09.8]} 48. Bh6+ {[%clk 0:01:32.6]} 48... Kf7 {[%clk
0:00:10]} 49. Bg5 {[%clk 0:01:33]} 49... Kg7 {[%clk 0:00:09.9]} 50. Nd6 {[%clk
0:01:30.8]} 50... Kf8 {[%clk 0:00:06]} 51. Bxf6 {[%clk 0:01:26.8]} 51... Nxf6+
{[%clk 0:00:05.9]} 52. Kg6 {[%clk 0:01:27.4]} 52... Nd7 {[%clk 0:00:03]} 53. Nc4
{[%clk 0:01:23.2]} 53... Ke7 {[%clk 0:00:01.8]} 54. Kf5 {[%clk 0:01:23.7]} 1-0

[Event "Early-Titled-Tuesday-Blitz-May-14-2024"]
[Site "Chess.com"]
[Date "2024.05.14"]
[Round "5"]
[White "GelmanAlexander"]
[Black "vovachesss"]
[Result "1-0"]
[WhiteElo "2667"]
[BlackElo "2824"]
[TimeControl "180+1"]
[EndTime "8:57:22 PDT"]
[Termination "GelmanAlexander won on time"]

1. c4 {[%clk 0:03:00.9]} 1... e6 {[%clk 0:02:57]} 2. d3 {[%clk 0:03:00.5]} 2...
d5 {[%clk 0:02:56.9]} 3. Nd2 {[%clk 0:03:00.2]} 3... Nf6 {[%clk 0:02:56.2]} 4.
Ngf3 {[%clk 0:03:00.4]} 4... b6 {[%clk 0:02:54.9]} 5. e3 {[%clk 0:03:00.1]} 5...
Bb7 {[%clk 0:02:55.2]} 6. b3 {[%clk 0:03:00.1]} 6... Nbd7 {[%clk 0:02:55.5]} 7.
Bb2 {[%clk 0:03:00.3]} 7... Bd6 {[%clk 0:02:56]} 8. a3 {[%clk 0:02:59.5]} 8...
O-O {[%clk 0:02:56.4]} 9. Rg1 {[%clk 0:02:59.3]} 9... e5 {[%clk 0:02:42.9]} 10.
cxd5 {[%clk 0:02:57.9]} 10... Nxd5 {[%clk 0:02:40]} 11. g4 {[%clk 0:02:57.7]}
11... a5 {[%clk 0:02:33]} 12. h4 {[%clk 0:02:54.4]} 12... Nc5 {[%clk 0:02:32.5]}
13. g5 {[%clk 0:02:41]} 13... f5 {[%clk 0:02:26]} 14. gxf6 {[%clk 0:01:57.1]}
14... Qxf6 {[%clk 0:02:24.9]} 15. Rg3 {[%clk 0:01:57]} 15... Rae8 {[%clk
0:01:51]} 16. Ne4 {[%clk 0:01:54.7]} 16... Nxe4 {[%clk 0:01:25.8]} 17. dxe4
{[%clk 0:01:54.6]} 17... Ne7 {[%clk 0:01:03.6]} 18. Qc2 {[%clk 0:01:39]} 18...
Ng6 {[%clk 0:01:00]} 19. O-O-O {[%clk 0:00:59]} 19... Nxh4 {[%clk 0:00:48.2]}
20. Ng5 {[%clk 0:00:32.3]} 20... h6 {[%clk 0:00:43.3]} 21. Bc4+ {[%clk
0:00:31.5]} 21... Kh8 {[%clk 0:00:43.5]} 22. Rh1 {[%clk 0:00:30.8]} 22... hxg5
{[%clk 0:00:15.9]} 23. f4 {[%clk 0:00:31]} 23... gxf4 {[%clk 0:00:15.6]} 24. Rg4
{[%clk 0:00:31.4]} 24... g5 {[%clk 0:00:10.9]} 25. exf4 {[%clk 0:00:31.7]} 25...
Qh6 {[%clk 0:00:02.7]} 26. fxg5 {[%clk 0:00:26]} 26... Qg6 {[%clk 0:00:01.4]}
27. Rgxh4+ {[%clk 0:00:22.5]} 27... Kg7 {[%clk 0:00:02.2]} 28. Rh7+ {[%clk
0:00:21.5]} 28... Qxh7 {[%clk 0:00:02]} 29. Rxh7+ {[%clk 0:00:21.2]} 29... Kxh7
{[%clk 0:00:02.9]} 30. Qh2+ {[%clk 0:00:21.2]} 1-0

[Event "Early-Titled-Tuesday-Blitz-May-14-2024"]
[Site "Chess.com"]
[Date "2024.05.14"]
[Round "5"]
[White "biveklama"]
[Black "KogotBobra17"]
[Result "1-0"]
[WhiteElo "2569"]
[BlackElo "2673"]
[TimeControl "180+1"]
[EndTime "8:57:22 PDT"]
[Termination "biveklama won by resignation"]

1. e4 {[%clk 0:03:00.9]} 1... c5 {[%clk 0:02:59]} 2. Nf3 {[%clk 0:03:00.9]} 2...
Nc6 {[%clk 0:02:57.4]} 3. Bb5 {[%clk 0:03:00.3]} 3... g5 {[%clk 0:02:58]} 4. h3
{[%clk 0:02:55.4]} 4... Nf6 {[%clk 0:02:56.4]} 5. e5 {[%clk 0:02:52.2]} 5... g4
{[%clk 0:02:54.8]} 6. exf6 {[%clk 0:02:49.1]} 6... gxf3 {[%clk 0:02:54.9]} 7.
Bxc6 {[%clk 0:02:44.5]} 7... dxc6 {[%clk 0:02:55.2]} 8. Qxf3 {[%clk 0:02:43.9]}
8... Be6 {[%clk 0:02:55.6]} 9. Nc3 {[%clk 0:02:35.7]} 9... Qb6 {[%clk
0:02:40.7]} 10. d3 {[%clk 0:02:28.4]} 10... O-O-O {[%clk 0:02:40.8]} 11. b3
{[%clk 0:02:23.6]} 11... exf6 {[%clk 0:02:30.4]} 12. Bb2 {[%clk 0:02:06.4]}
12... Bd6 {[%clk 0:02:09.2]} 13. Qxf6 {[%clk 0:01:53.1]} 13... Rhg8 {[%clk
0:02:07]} 14. g4 {[%clk 0:01:47.6]} 14... Rg6 {[%clk 0:01:12.8]} 15. Qf3 {[%clk
0:01:44.3]} 15... Be5 {[%clk 0:01:12.4]} 16. O-O-O {[%clk 0:01:41.3]} 16... Rf6
{[%clk 0:01:11.6]} 17. Qe2 {[%clk 0:01:26.1]} 17... Bd4 {[%clk 0:01:08.1]} 18.
Ne4 {[%clk 0:01:23.8]} 18... Rg6 {[%clk 0:01:08.7]} 19. f4 {[%clk 0:01:15.2]}
19... f5 {[%clk 0:01:07.3]} 20. Ng5 {[%clk 0:01:12.2]} 20... Bd5 {[%clk
0:01:04.2]} 21. Rhe1 {[%clk 0:01:09.2]} 21... fxg4 {[%clk 0:00:44.9]} 22. hxg4
{[%clk 0:01:00.5]} 22... Qa5 {[%clk 0:00:29.5]} 23. Kb1 {[%clk 0:00:59.5]} 23...
h6 {[%clk 0:00:28.8]} 24. Ne4 {[%clk 0:00:52.6]} 24... Kb8 {[%clk 0:00:11.2]}
25. f5 {[%clk 0:00:49.5]} 25... Rgg8 {[%clk 0:00:11.5]} 26. Qd2 {[%clk
0:00:43.4]} 26... Qb6 {[%clk 0:00:09.8]} 27. Qf4+ {[%clk 0:00:40.6]} 27... Ka8
{[%clk 0:00:10.4]} 28. f6 {[%clk 0:00:38.3]} 28... Rgf8 {[%clk 0:00:09.2]} 29.
g5 {[%clk 0:00:35.9]} 29... hxg5 {[%clk 0:00:09.3]} 30. Qxg5 {[%clk 0:00:35.6]}
30... c4 {[%clk 0:00:08.2]} 31. Bxd4 {[%clk 0:00:31.1]} 31... Qxd4 {[%clk
0:00:06.3]} 32. dxc4 {[%clk 0:00:31.4]} 32... Qxf6 {[%clk 0:00:04.1]} 1-0

[Event "Early-Titled-Tuesday-Blitz-May-14-2024"]
[Site "Chess.com"]
[Date "2024.05.14"]
[Round "5"]
[White "super_emi_26"]
[Black "Timerkhanov"]
[Result "0-1"]
[WhiteElo "2883"]
[BlackElo "2722"]
[TimeControl "180+1"]
[EndTime "8:57:24 PDT"]
[Termination "Timerkhanov won by resignation"]

1. e4 {[%clk 0:03:00.9]} 1... c5 {[%clk 0:02:59.2]} 2. Nc3 {[%clk 0:03:01.2]}
2... a6 {[%clk 0:02:58]} 3. g3 {[%clk 0:02:59.3]} 3... b5 {[%clk 0:02:57.8]} 4.
Bg2 {[%clk 0:02:59.8]} 4... Bb7 {[%clk 0:02:58.5]} 5. d3 {[%clk 0:03:00.2]} 5...
d6 {[%clk 0:02:59]} 6. f4 {[%clk 0:02:58.2]} 6... e6 {[%clk 0:02:59.2]} 7. Nf3
{[%clk 0:02:58.6]} 7... Nf6 {[%clk 0:02:59.8]} 8. O-O {[%clk 0:02:59.1]} 8...
Be7 {[%clk 0:03:00.4]} 9. b3 {[%clk 0:02:54.1]} 9... Nbd7 {[%clk 0:02:51.8]} 10.
Bb2 {[%clk 0:02:53.8]} 10... d5 {[%clk 0:02:47.2]} 11. exd5 {[%clk 0:02:53.1]}
11... exd5 {[%clk 0:02:46.2]} 12. a4 {[%clk 0:02:42.9]} 12... b4 {[%clk
0:02:41.3]} 13. Ne2 {[%clk 0:02:41]} 13... d4 {[%clk 0:02:41.1]} 14. Bc1 {[%clk
0:02:30]} 14... O-O {[%clk 0:02:39.7]} 15. f5 {[%clk 0:02:27.1]} 15... Nd5
{[%clk 0:02:30]} 16. Nf4 {[%clk 0:02:24.1]} 16... Nc3 {[%clk 0:02:05.4]} 17. Qe1
{[%clk 0:02:21.5]} 17... Re8 {[%clk 0:02:06]} 18. Bd2 {[%clk 0:02:13.6]} 18...
Bg5 {[%clk 0:01:56.9]} 19. Nxg5 {[%clk 0:01:52.9]} 19... Bxg2 {[%clk 0:01:50.2]}
20. Nxg2 {[%clk 0:01:17.1]} 20... Rxe1 {[%clk 0:01:44.6]} 21. Raxe1 {[%clk
0:01:16.7]} 21... Nf6 {[%clk 0:01:41.7]} 22. Nf3 {[%clk 0:01:12.9]} 22... h6
{[%clk 0:01:27.9]} 23. Bxc3 {[%clk 0:01:09.2]} 23... bxc3 {[%clk 0:01:26.6]} 24.
h3 {[%clk 0:01:09.4]} 24... Nd5 {[%clk 0:01:26.8]} 25. Re5 {[%clk 0:01:07.5]}
25... Qd6 {[%clk 0:01:22.3]} 26. Kh2 {[%clk 0:00:44.3]} 26... Nb4 {[%clk
0:01:18.4]} 27. Rf2 {[%clk 0:00:44]} 27... Nc6 {[%clk 0:01:06.6]} 28. Re1 {[%clk
0:00:44]} 28... Qd7 {[%clk 0:01:02]} 29. Ne5 {[%clk 0:00:40.6]} 29... Qe7 {[%clk
0:00:36.8]} 30. Rfe2 {[%clk 0:00:40.4]} 30... Re8 {[%clk 0:00:37.1]} 31. Nxc6
{[%clk 0:00:20.6]} 31... Qxe2 {[%clk 0:00:36.9]} 32. Rxe2 {[%clk 0:00:21.5]}
32... Rxe2 {[%clk 0:00:37]} 33. b4 {[%clk 0:00:22.4]} 33... Rxc2 {[%clk
0:00:30.3]} 34. bxc5 {[%clk 0:00:21.3]} 34... Rd2 {[%clk 0:00:28.7]} 35. Ne7+
{[%clk 0:00:15.5]} 35... Kf8 {[%clk 0:00:26.5]} 36. c6 {[%clk 0:00:16.1]} 36...
Kxe7 {[%clk 0:00:22.7]} 0-1

[Event "Early-Titled-Tuesday-Blitz-May-14-2024"]
[Site "Chess.com"]
[Date "2024.05.14"]
[Round "5"]
[White "Yaacovn"]
[Black "Artemiki"]
[Result "1-0"]
[WhiteElo "2812"]
[BlackElo "2606"]
[TimeControl "180+1"]
[EndTime "8:57:24 PDT"]
[Termination "Yaacovn won on time"]

1. d4 {[%clk 0:03:00.5]} 1... Nf6 {[%clk 0:02:41.1]} 2. e3 {[%clk 0:02:59.7]}
2... c5 {[%clk 0:02:39.2]} 3. c3 {[%clk 0:02:59.1]} 3... d5 {[%clk 0:02:29.3]}
4. Nd2 {[%clk 0:02:57]} 4... Nc6 {[%clk 0:02:29.4]} 5. dxc5 {[%clk 0:02:56.6]}
5... a5 {[%clk 0:02:26.1]} 6. Bb5 {[%clk 0:02:54.5]} 6... e5 {[%clk 0:02:12.7]}
7. e4 {[%clk 0:02:50.8]} 7... Bxc5 {[%clk 0:02:03.9]} 8. exd5 {[%clk 0:02:47.7]}
8... Qxd5 {[%clk 0:02:00.7]} 9. Ngf3 {[%clk 0:02:43.7]} 9... Bxf2+ {[%clk
0:01:50.1]} 10. Kxf2 {[%clk 0:02:43.6]} 10... Qc5+ {[%clk 0:01:47.8]} 11. Ke1
{[%clk 0:02:32.7]} 11... Qxb5 {[%clk 0:01:44]} 12. Qe2 {[%clk 0:02:33.2]} 12...
Qxe2+ {[%clk 0:01:40.6]} 13. Kxe2 {[%clk 0:02:34.1]} 13... e4 {[%clk 0:01:38.3]}
14. Ng5 {[%clk 0:02:32.4]} 14... O-O {[%clk 0:01:23.9]} 15. Ngxe4 {[%clk
0:02:19]} 15... Nxe4 {[%clk 0:01:20.6]} 16. Nxe4 {[%clk 0:02:19.9]} 16... Re8
{[%clk 0:01:20.6]} 17. Kf3 {[%clk 0:02:19.9]} 17... Ne5+ {[%clk 0:01:07.3]} 18.
Kg3 {[%clk 0:02:19.8]} 18... Nc4 {[%clk 0:00:58]} 19. Ng5 {[%clk 0:02:11.6]}
19... Bf5 {[%clk 0:00:53.3]} 20. Nf3 {[%clk 0:02:10.8]} 20... Bg6 {[%clk
0:00:46.2]} 21. Nd4 {[%clk 0:02:03]} 21... Rad8 {[%clk 0:00:26.1]} 22. b3 {[%clk
0:02:02.7]} 22... Nd6 {[%clk 0:00:25.6]} 23. Bb2 {[%clk 0:02:00.1]} 23... Ne4+
{[%clk 0:00:25.3]} 24. Kf4 {[%clk 0:02:00.2]} 24... Nf6 {[%clk 0:00:20.9]} 25.
Rae1 {[%clk 0:01:59.8]} 25... Nd5+ {[%clk 0:00:21]} 26. Kf3 {[%clk 0:01:57.5]}
26... f6 {[%clk 0:00:19.6]} 27. g3 {[%clk 0:01:55.9]} 27... Bh5+ {[%clk
0:00:18.5]} 28. Kf2 {[%clk 0:01:55.9]} 28... Bg6 {[%clk 0:00:18.1]} 29. h3
{[%clk 0:01:55.9]} 29... Be4 {[%clk 0:00:15.4]} 30. Rhg1 {[%clk 0:01:55.8]}
30... f5 {[%clk 0:00:15]} 31. Re2 {[%clk 0:01:55.8]} 31... f4 {[%clk 0:00:09.4]}
32. Rge1 {[%clk 0:01:55.8]} 32... fxg3+ {[%clk 0:00:08.6]} 33. Kxg3 {[%clk
0:01:56.7]} 33... Bg6 {[%clk 0:00:09.2]} 34. Rxe8+ {[%clk 0:01:55.5]} 34... Rxe8
{[%clk 0:00:10.1]} 35. Rxe8+ {[%clk 0:01:55.6]} 35... Bxe8 {[%clk 0:00:10.8]}
36. c4 {[%clk 0:01:55.3]} 36... Nb4 {[%clk 0:00:10.8]} 37. Bc3 {[%clk
0:01:54.9]} 37... Nxa2 {[%clk 0:00:05.9]} 38. Bxa5 {[%clk 0:01:55.2]} 38... Nc1
{[%clk 0:00:06.3]} 39. Bd2 {[%clk 0:01:55.6]} 39... Nd3 {[%clk 0:00:05.4]} 40.
Kf3 {[%clk 0:01:56]} 40... Bd7 {[%clk 0:00:05.3]} 41. Ke3 {[%clk 0:01:56.1]}
41... Ne5 {[%clk 0:00:04.7]} 42. Ke4 {[%clk 0:01:56]} 42... Nc6 {[%clk
0:00:04.7]} 43. Nf5 {[%clk 0:01:53.7]} 43... g6 {[%clk 0:00:02.9]} 44. Nh6+
{[%clk 0:01:53.1]} 44... Kg7 {[%clk 0:00:02.6]} 45. h4 {[%clk 0:01:54]} 45...
Kf6 {[%clk 0:00:02.5]} 46. Bc3+ {[%clk 0:01:53.7]} 46... Ke6 {[%clk 0:00:02.6]}
47. Ng8 {[%clk 0:01:54.6]} 47... b6 {[%clk 0:00:01.6]} 48. Nf6 {[%clk
0:01:54.9]} 48... Nb8 {[%clk 0:00:01.7]} 49. Nxh7 {[%clk 0:01:55.2]} 49... Bc6+
{[%clk 0:00:01.9]} 50. Kd4 {[%clk 0:01:55]} 50... Nd7 {[%clk 0:00:02.4]} 51.
Ng5+ {[%clk 0:01:55.9]} 51... Kf5 {[%clk 0:00:02.7]} 52. b4 {[%clk 0:01:56.4]}
52... Kg4 {[%clk 0:00:02.5]} 53. Be1 {[%clk 0:01:56.4]} 53... Bb7 {[%clk
0:00:00.8]} 54. Nf7 {[%clk 0:01:56.4]} 54... Bc6 {[%clk 0:00:00.7]} 55. Bf2
{[%clk 0:01:55.4]} 55... Kf3 {[%clk 0:00:00.9]} 56. Be1 {[%clk 0:01:55.4]} 56...
Ke2 {[%clk 0:00:01.5]} 57. Bg3 {[%clk 0:01:55.4]} 57... Kf3 {[%clk 0:00:02.2]}
58. Bc7 {[%clk 0:01:55.6]} 58... Kg4 {[%clk 0:00:02.8]} 59. Bd8 {[%clk
0:01:55.7]} 59... Kf3 {[%clk 0:00:02.5]} 60. b5 {[%clk 0:01:55.5]} 60... Bb7
{[%clk 0:00:02.8]} 61. Nd6 {[%clk 0:01:56.1]} 61... Ba8 {[%clk 0:00:01.9]} 62.
Nc8 {[%clk 0:01:56.5]} 62... Kg4 {[%clk 0:00:01.9]} 63. Nxb6 {[%clk 0:01:56.7]}
63... Nxb6 {[%clk 0:00:02.2]} 64. Bxb6 {[%clk 0:01:56.7]} 64... Kxh4 {[%clk
0:00:02.6]} 65. c5 {[%clk 0:01:57.3]} 65... g5 {[%clk 0:00:01.9]} 66. c6 {[%clk
0:01:57.3]} 66... g4 {[%clk 0:00:02.6]} 67. Bc7 {[%clk 0:01:57.4]} 67... g3
{[%clk 0:00:02.8]} 68. Bxg3+ {[%clk 0:01:57.9]} 68... Kxg3 {[%clk 0:00:03.5]}
69. Kc5 {[%clk 0:01:58.8]} 69... Kf4 {[%clk 0:00:03.7]} 70. b6 {[%clk 0:01:59]}
70... Ke5 {[%clk 0:00:03.4]} 71. b7 {[%clk 0:01:59.1]} 1-0

[Event "Early-Titled-Tuesday-Blitz-May-14-2024"]
[Site "Chess.com"]
[Date "2024.05.14"]
[Round "5"]
[White "Kazmin_Semyon"]
[Black "Kimkibo"]
[Result "1-0"]
[WhiteElo "2595"]
[BlackElo "2422"]
[TimeControl "180+1"]
[EndTime "8:57:24 PDT"]
[Termination "Kazmin_Semyon won by resignation"]

1. d4 {[%clk 0:03:00.9]} 1... d5 {[%clk 0:02:29.8]} 2. c4 {[%clk 0:02:55.8]}
2... e6 {[%clk 0:02:26.9]} 3. Nc3 {[%clk 0:02:55.3]} 3... Nf6 {[%clk 0:02:26.1]}
4. cxd5 {[%clk 0:02:54.2]} 4... exd5 {[%clk 0:02:23.2]} 5. Bg5 {[%clk
0:02:55.1]} 5... Be7 {[%clk 0:02:22.3]} 6. e3 {[%clk 0:02:55.3]} 6... O-O {[%clk
0:02:21.6]} 7. Bd3 {[%clk 0:02:54.6]} 7... c6 {[%clk 0:02:19.7]} 8. Qc2 {[%clk
0:02:53.8]} 8... h6 {[%clk 0:02:18.3]} 9. Bh4 {[%clk 0:02:52.8]} 9... Re8 {[%clk
0:02:15.4]} 10. Nge2 {[%clk 0:02:52.2]} 10... Ne4 {[%clk 0:02:15.6]} 11. Bxe7
{[%clk 0:02:50.1]} 11... Qxe7 {[%clk 0:02:16.4]} 12. O-O {[%clk 0:02:50.6]}
12... Bf5 {[%clk 0:02:08.9]} 13. Rae1 {[%clk 0:02:47.6]} 13... Nxc3 {[%clk
0:02:00.5]} 14. Nxc3 {[%clk 0:02:35.6]} 14... Bxd3 {[%clk 0:01:31.2]} 15. Qxd3
{[%clk 0:02:36.5]} 15... Nd7 {[%clk 0:01:31.4]} 16. f3 {[%clk 0:02:35.4]} 16...
Rad8 {[%clk 0:01:24.8]} 17. e4 {[%clk 0:02:35.3]} 17... dxe4 {[%clk 0:01:21.2]}
18. fxe4 {[%clk 0:02:36.2]} 18... Qb4 {[%clk 0:01:17]} 19. a3 {[%clk 0:02:08]}
19... Qxb2 {[%clk 0:01:15.1]} 20. Qc4 {[%clk 0:02:00.5]} 20... Rf8 {[%clk
0:00:49.5]} 21. Rb1 {[%clk 0:01:59.6]} 21... Qxa3 {[%clk 0:00:48.5]} 22. Rxb7
{[%clk 0:01:57]} 22... Nb6 {[%clk 0:00:47.3]} 23. Rfxf7 {[%clk 0:01:52.4]} 23...
Qc1+ {[%clk 0:00:31.8]} 24. Rf1+ {[%clk 0:00:53.9]} 24... Nxc4 {[%clk 0:00:19]}
25. Rxc1 {[%clk 0:00:54.1]} 25... Rxd4 {[%clk 0:00:19.4]} 26. Rxa7 {[%clk
0:00:49.6]} 26... Ne3 {[%clk 0:00:14.9]} 27. Ra2 {[%clk 0:00:35.3]} 27... Rc4
{[%clk 0:00:13]} 28. h3 {[%clk 0:00:23.9]} 28... Rc5 {[%clk 0:00:12.1]} 29. Re2
{[%clk 0:00:22]} 29... Nc4 {[%clk 0:00:12.3]} 30. Na4 {[%clk 0:00:21.9]} 30...
Ra5 {[%clk 0:00:09.5]} 31. Rxc4 {[%clk 0:00:22.3]} 31... Rfa8 {[%clk 0:00:08.6]}
32. Nc3 {[%clk 0:00:19.7]} 1-0

[Event "Early-Titled-Tuesday-Blitz-May-14-2024"]
[Site "Chess.com"]
[Date "2024.05.14"]
[Round "5"]
[White "Szachulec75"]
[Black "Lovetov"]
[Result "0-1"]
[WhiteElo "2141"]
[BlackElo "2549"]
[TimeControl "180+1"]
[EndTime "8:57:25 PDT"]
[Termination "Lovetov won on time"]

1. Nf3 {[%clk 0:03:00.9]} 1... d5 {[%clk 0:02:58.2]} 2. g3 {[%clk 0:03:00.2]}
2... Bf5 {[%clk 0:02:56.8]} 3. Bg2 {[%clk 0:03:01.1]} 3... Nd7 {[%clk
0:02:55.7]} 4. d3 {[%clk 0:03:02]} 4... e6 {[%clk 0:02:53.3]} 5. O-O {[%clk
0:03:02.6]} 5... Ngf6 {[%clk 0:02:53.8]} 6. Nbd2 {[%clk 0:03:02.5]} 6... Be7
{[%clk 0:02:49.1]} 7. Re1 {[%clk 0:03:02.3]} 7... Nc5 {[%clk 0:02:36.7]} 8. b3
{[%clk 0:02:46.9]} 8... h6 {[%clk 0:02:31.8]} 9. Bb2 {[%clk 0:02:47.1]} 9... O-O
{[%clk 0:02:32.5]} 10. Ne5 {[%clk 0:02:38.5]} 10... a5 {[%clk 0:02:31.7]} 11. a3
{[%clk 0:02:37.7]} 11... Bh7 {[%clk 0:02:27.9]} 12. h3 {[%clk 0:02:34.6]} 12...
Qd6 {[%clk 0:02:17.9]} 13. e4 {[%clk 0:02:32.4]} 13... dxe4 {[%clk 0:02:14.7]}
14. Nxe4 {[%clk 0:01:53.7]} 14... Nfxe4 {[%clk 0:01:54.9]} 15. dxe4 {[%clk
0:01:53.1]} 15... Bf6 {[%clk 0:01:51.6]} 16. Nc4 {[%clk 0:01:17.1]} 16... Qxd1
{[%clk 0:01:47.6]} 17. Raxd1 {[%clk 0:01:18]} 17... Bxb2 {[%clk 0:01:47.2]} 18.
Nxb2 {[%clk 0:01:17.9]} 18... Rfd8 {[%clk 0:01:47.9]} 19. f3 {[%clk 0:01:17.4]}
19... f5 {[%clk 0:01:42.9]} 20. b4 {[%clk 0:01:09.6]} 20... axb4 {[%clk
0:01:20.1]} 21. axb4 {[%clk 0:00:45.8]} 21... Na6 {[%clk 0:01:14.4]} 22. c3
{[%clk 0:00:41.9]} 22... fxe4 {[%clk 0:01:12.9]} 23. fxe4 {[%clk 0:00:40.1]}
23... c5 {[%clk 0:01:13.6]} 24. b5 {[%clk 0:00:28.4]} 24... Nc7 {[%clk
0:01:11.1]} 25. b6 {[%clk 0:00:23.2]} 25... Nb5 {[%clk 0:01:09.4]} 26. Rxd8+
{[%clk 0:00:11.4]} 26... Rxd8 {[%clk 0:01:09.9]} 27. e5 {[%clk 0:00:12.3]} 27...
Rd7 {[%clk 0:01:10.2]} 28. Na4 {[%clk 0:00:10.4]} 28... Nxc3 {[%clk 0:00:50.3]}
29. Nxc3 {[%clk 0:00:09]} 29... Rd4 {[%clk 0:00:45.5]} 30. Bxb7 {[%clk
0:00:06.2]} 30... Rb4 {[%clk 0:00:46.1]} 31. Bc8 {[%clk 0:00:02.7]} 31... Rxb6
{[%clk 0:00:45.6]} 32. Na4 {[%clk 0:00:03.2]} 32... Rc6 {[%clk 0:00:41]} 33. Bd7
{[%clk 0:00:03.6]} 33... Rc7 {[%clk 0:00:36.3]} 34. Bxe6+ {[%clk 0:00:02.1]}
34... Kf8 {[%clk 0:00:37.2]} 35. Bc4 {[%clk 0:00:02.2]} 35... Ke7 {[%clk
0:00:37.6]} 36. Rd1 {[%clk 0:00:01.8]} 36... Bf5 {[%clk 0:00:38.1]} 37. g4
{[%clk 0:00:01.2]} 37... Bd7 {[%clk 0:00:38.9]} 38. Kf2 {[%clk 0:00:01.8]} 38...
Bxa4 {[%clk 0:00:38.8]} 0-1

[Event "Early-Titled-Tuesday-Blitz-May-14-2024"]
[Site "Chess.com"]
[Date "2024.05.14"]
[Round "5"]
[White "Sasha_Solovev_777"]
[Black "Mikhail_Golubev"]
[Result "1-0"]
[WhiteElo "2224"]
[BlackElo "2536"]
[TimeControl "180+1"]
[EndTime "8:57:26 PDT"]
[Termination "Sasha_Solovev_777 won on time"]

1. e4 {[%clk 0:02:58.1]} 1... c5 {[%clk 0:02:59]} 2. Nf3 {[%clk 0:02:57.6]} 2...
d6 {[%clk 0:02:59]} 3. d4 {[%clk 0:02:57.7]} 3... Nf6 {[%clk 0:02:59.2]} 4. Nc3
{[%clk 0:02:56]} 4... cxd4 {[%clk 0:02:59.3]} 5. Nxd4 {[%clk 0:02:56.1]} 5...
Nc6 {[%clk 0:02:59.9]} 6. Bg5 {[%clk 0:02:54.2]} 6... e6 {[%clk 0:03:00.1]} 7.
f4 {[%clk 0:02:47.9]} 7... Be7 {[%clk 0:02:52.5]} 8. Qd2 {[%clk 0:02:45.1]} 8...
h6 {[%clk 0:02:52.2]} 9. Bh4 {[%clk 0:02:23]} 9... Nxe4 {[%clk 0:02:36.8]} 10.
Nxe4 {[%clk 0:02:02.9]} 10... Bxh4+ {[%clk 0:02:32.5]} 11. g3 {[%clk 0:02:02.7]}
11... Be7 {[%clk 0:02:27.6]} 12. O-O-O {[%clk 0:01:57.1]} 12... d5 {[%clk
0:02:21]} 13. Nf2 {[%clk 0:01:31.3]} 13... O-O {[%clk 0:02:11.9]} 14. g4 {[%clk
0:01:21.1]} 14... Qb6 {[%clk 0:01:57.5]} 15. Nb3 {[%clk 0:01:11.2]} 15... Bd7
{[%clk 0:01:37.5]} 16. Nd3 {[%clk 0:00:55.8]} 16... Rac8 {[%clk 0:01:29.7]} 17.
Be2 {[%clk 0:00:45.4]} 17... a5 {[%clk 0:01:18.1]} 18. g5 {[%clk 0:00:32.4]}
18... hxg5 {[%clk 0:01:10.6]} 19. fxg5 {[%clk 0:00:32.2]} 19... a4 {[%clk
0:01:10.3]} 20. Na1 {[%clk 0:00:32.4]} 20... a3 {[%clk 0:00:59]} 21. b3 {[%clk
0:00:32.3]} 21... Nb4 {[%clk 0:00:52.2]} 22. Kb1 {[%clk 0:00:30.3]} 22... Qd4
{[%clk 0:00:38.2]} 23. Qc1 {[%clk 0:00:21.8]} 23... Bxg5 {[%clk 0:00:24]} 24.
Nxb4 {[%clk 0:00:15.5]} 24... Qf6 {[%clk 0:00:03.3]} 25. Qxa3 {[%clk 0:00:14.1]}
25... Qe5 {[%clk 0:00:01.1]} 26. Nd3 {[%clk 0:00:14]} 26... Qxe2 {[%clk
0:00:00.2]} 27. h4 {[%clk 0:00:12.4]} 1-0